bitfinex/quotes_ETHUSD_20241001
["timestamp","ask_amount","ask_price","bid_price","bid_amount"]
[1727773218403,3.77993,2645.6,2645.2,0.8224]
[1727773218603,7.55992,2645.6,2645.2,0.8224]
[1727773218792,3.78005,2645.5,2645.2,0.8224]
[1727773219271,3.77993,2645.6,2645.2,0.8224]
[1727773219575,3.78,2645.5,2645.2,0.8224]
[1727773219967,3.77987,2645.6,2645.2,0.8224]
[1727773220527,3.78002,2645.5,2645.2,0.8224]
[1727773220592,7.55986,2645.6,2645.2,0.8224]
[1727773220968,3.77987,2645.6,2645.2,0.8224]
[1727773221167,3.78003,2645.5,2645.2,0.8224]
[1727773221722,0.8163,2645.4,2645.0,0.0756042]
[1727773221919,0.8163,2645.4,2643.6,7.97277452]
[1727773221920,3.78108,2644.8,2644.3,3.78163]
[1727773222076,3.78137,2644.6,2644.0,4.60794]
[1727773222272,3.78137,2644.6,2644.1,0.839013]
[1727773222689,3.78115,2644.7,2644.1,0.839013]
[1727773222997,3.78115,2644.7,2644.2,0.90443168]
[1727773224189,3.78115,2644.7,2644.2,4.68628168]
[1727773224190,3.77915,2644.7,2644.2,4.68628168]
[1727773224509,3.77915,2644.7,2644.3,0.93071847]
[1727773225013,3.72561008,2644.9,2644.4,1.60943161]
[1727773225320,3.78116,2644.7,2644.5,0.7665]
[1727773226094,3.78107,2644.8,2644.5,0.7665]
[1727773226435,3.78107,2644.8,2644.5,1.22888376]
[1727773227533,3.78107,2644.8,2644.5,0.7665]
[1727773228104,3.78087,2644.9,2644.5,0.7665]
[1727773228307,3.78087,2644.9,2644.5,4.54791]
[1727773228927,3.78076,2645.0,2644.5,0.7665]
[1727773229168,1.60943161,2645.2,2644.5,0.7665]
[1727773229337,3.78078,2645.0,2644.5,5.31023227]
[1727773229494,3.78094,2644.9,2644.5,5.31023227]
[1727773229695,3.78094,2644.9,2644.5,1.52887227]
[1727773230248,3.78073,2645.0,2644.5,5.31023227]
[1727773230335,3.78073,2645.0,2644.6,0.53858549]
[1727773230636,3.78087,2644.9,2644.6,0.53858549]
[1727773232229,3.78065,2645.1,2644.6,0.61420705]
[1727773232433,3.78065,2645.1,2644.8,0.8116]
[1727773233206,3.78036,2645.3,2644.8,4.59252]
[1727773233520,3.78044,2645.2,2644.9,0.837359]
[1727773233935,3.7803,2645.3,2644.9,0.837359]
[1727773234451,2.40233161,2645.7,2644.9,0.837359]
[1727773234745,3.7804,2645.3,2644.9,0.837359]
[1727773234951,3.7804,2645.3,2645.0,0.5429879]
[1727773235512,3.7804,2645.3,2645.1,0.8251]
[1727773236028,3.78028,2645.4,2645.1,0.8251]
[1727773236415,3.78024,2645.4,2645.1,0.8251]
[1727773237210,3.78023,2645.4,2645.1,0.8251]
[1727773237417,3.78001,2645.5,2645.1,0.8251]
[1727773237617,3.78001,2645.5,2645.1,1.33997379]
[1727773237921,3.78014,2645.4,2645.1,1.33997379]
[1727773238235,3.78001,2645.5,2645.1,5.12053379]
[1727773238547,3.77994,2645.6,2645.1,5.12044379]
[1727773238548,3.77987,2645.6,2645.1,5.12044379]
[1727773238748,3.78001,2645.5,2645.2,0.73484675]
[1727773243370,3.78001,2645.5,2645.1,5.12044379]
[1727773243667,3.78001,2645.5,2645.1,5.11766379]
[1727773245352,3.78001,2645.5,2645.1,4.60279]
[1727773246676,3.77986,2645.6,2645.2,3.78042]
[1727773247667,7.55952,2645.7,2645.2,3.78042]
[1727773248088,7.55952,2645.7,2645.1,0.82232]
[1727773248089,3.77992,2645.6,2645.1,4.60279]
[1727773248267,3.78,2645.5,2645.1,4.60279]
[1727773250451,3.77993,2645.6,2645.1,4.67839422]
[1727773250983,3.77993,2645.6,2645.1,8.45886245]
[1727773251280,3.77993,2645.6,2645.1,9.4443882]
[1727773251493,7.55955,2645.7,2645.2,0.07560128]
[1727773251777,3.77986,2645.6,2645.3,0.7907]
[1727773258581,3.77974,2645.7,2645.3,4.57089]
[1727773258879,7.55957,2645.7,2645.3,0.7907]
[1727773259305,3.77987,2645.6,2645.3,0.7907]
[1727773261857,7.55982,2645.6,2645.3,0.7907]
[1727773262194,1.60943161,2645.4,2644.7,3.78107]
[1727773262398,3.78069,2645.1,2644.6,4.60322]
[1727773262566,3.78073,2645.0,2644.6,4.60322]
[1727773263389,4.57355,2645.1,2644.7,3.78112]
[1727773264490,3.78065,2645.1,2644.7,3.78112]
[1727773264889,3.87500926,2645.2,2644.7,3.78112]
[1727773265075,3.78058,2645.1,2644.7,3.78112]
[1727773266146,3.87496926,2645.2,2644.8,3.78099]
[1727773266417,3.87496926,2645.2,2644.7,2.683434]
[1727773266418,3.78029,2645.3,2644.9,4.6131]
[1727773268285,4.58137,2645.5,2645.0,3.78064]
[1727773268489,3.78016,2645.4,2645.0,3.85624731]
[1727773268793,3.78016,2645.4,2644.9,5.39023161]
[1727773268794,3.78007,2645.5,2645.1,5.48901789]
[1727773269556,4.54142,2645.7,2645.2,3.78034]
[1727773269773,7.55961,2645.7,2645.2,3.78034]
[1727773269989,3.77987,2645.6,2645.2,3.78034]
[1727773272793,5.36179256,2645.8,2645.2,3.78031]
[1727773273005,3.87422022,2645.7,2645.2,4.32918579]
[1727773273168,3.87422022,2645.7,2645.2,8.10953579]
[1727773273988,3.87422022,2645.7,2645.3,0.7801]
[1727773275504,3.77972,2645.7,2645.3,0.7801]
[1727773275938,3.77972,2645.7,2645.3,4.56037]
[1727773276463,3.77972,2645.7,2645.3,5.70273353]
[1727773277874,3.7796,2645.8,2645.3,5.70273353]
[1727773278119,5.36179256,2645.8,2645.4,3.78012]
[1727773278256,3.7796,2645.8,2645.4,3.78012]
[1727773278471,3.77976,2645.7,2645.3,5.70272353]
[1727773278993,1.58219256,2645.9,2645.3,5.70272353]
[1727773279168,5.36183256,2645.8,2645.4,4.41285987]
[1727773279365,3.77964,2645.8,2645.4,4.41285987]
[1727773279566,5.45614122,2645.9,2645.5,0.7908]
[1727773279767,1.58219256,2646.0,2645.6,3.77984]
[1727773279972,5.36135256,2646.1,2645.7,4.5705]
[1727773280195,3.77916,2646.1,2645.7,4.5705]
[1727773280404,3.77916,2646.1,2645.8,0.8870706]
[1727773280773,6.12123256,2646.3,2645.8,0.8870706]
[1727773280999,3.77901,2646.2,2645.8,4.6666206]
[1727773281295,3.77894,2646.3,2646.0,0.7772]
[1727773281598,3.77892,2646.3,2646.0,0.7772]
[1727773281798,3.77892,2646.3,2646.0,1.32158306]
[1727773284014,7.5579,2646.3,2646.0,1.32158306]
[1727773284189,3.77892,2646.3,2646.0,1.32158306]
[1727773284590,3.779,2646.2,2646.0,1.32158306]
[1727773284791,3.779,2646.2,2646.0,0.7772]
[1727773285204,0.7787,2646.1,2645.7,3.0]
[1727773285413,3.77944,2645.9,2645.6,1.33826599]
[1727773285633,7.55897,2645.9,2645.6,1.33826599]
[1727773285817,3.77944,2645.9,2645.6,1.33826599]
[1727773288519,3.7796,2645.8,2645.6,1.33826599]
[1727773289227,3.77943,2645.9,2645.6,1.33826599]
[1727773290027,3.77957,2645.8,2645.6,1.33826599]
[1727773290221,0.09448933,2646.0,2645.6,1.33826599]
[1727773290425,0.7787,2646.1,2645.7,0.4338266]
[1727773290426,7.55849,2646.1,2645.7,0.4338266]
[1727773290630,3.77924,2646.1,2645.7,0.4338266]
[1727773291929,3.77924,2646.1,2645.7,4.2135266]
[1727773292773,3.77924,2646.1,2645.7,0.4338266]
[1727773292932,3.77924,2646.1,2645.7,4.2135166]
[1727773293964,7.55852,2646.1,2645.7,0.4338266]
[1727773294259,3.8737137,2646.1,2645.7,0.4338266]
[1727773295245,7.55846,2646.1,2645.7,0.4338266]
[1727773295484,3.87371371,2646.1,2645.7,0.4338266]
[1727773296165,3.87371371,2646.1,2645.7,4.2135366]
[1727773296337,3.77923,2646.1,2645.7,4.2135366]
[1727773296722,3.77923,2646.1,2645.8,0.8254]
[1727773297474,3.77922,2646.1,2645.8,0.8254]
[1727773298058,3.87349373,2646.2,2645.8,4.60493]
[1727773298252,3.77906,2646.2,2645.8,5.16086026]
[1727773299279,3.77918,2646.1,2645.8,1.38133026]
[1727773301051,3.77906,2646.2,2645.8,1.38133026]
[1727773301373,3.77906,2646.2,2645.9,0.55947869]
[1727773304985,5.38826161,2646.4,2645.9,0.55947869]
[1727773305176,3.77887,2646.3,2645.9,0.55947869]
[1727773305377,3.77887,2646.3,2645.9,4.33888869]
[1727773305758,3.77887,2646.3,2646.0,0.7717]
[1727773305883,3.77887,2646.3,2646.0,1.3383519]
[1727773307808,3.77875,2646.4,2646.0,5.1176319]
[1727773308207,3.77868,2646.5,2646.1,3.77908]
[1727773308393,3.77868,2646.5,2646.0,5.1176319]
[1727773308717,3.77868,2646.5,2646.1,2.95159522]
[1727773309185,3.77868,2646.5,2646.2,0.7941]
[1727773311619,0.09446884,2646.6,2646.2,0.7941]
[1727773311908,3.7785,2646.6,2646.2,4.57309]
[1727773312582,0.7651,2646.8,2646.2,0.86967507]
[1727773312818,5.36029256,2646.9,2646.3,4.32186019]
[1727773313124,3.7783,2646.7,2646.4,0.8095]
[1727773315829,3.77817,2646.8,2646.4,0.8095]
[1727773316413,3.77832,2646.7,2646.4,0.8095]
[1727773317690,3.77803,2646.9,2646.4,0.8095]
[1727773317897,3.77774,2647.1,2646.6,0.7681]
[1727773318105,3.77786,2647.0,2646.6,0.7681]
[1727773318733,3.77786,2647.0,2646.6,4.54652]
[1727773319243,5.35971256,2647.3,2646.7,3.77825]
[1727773319385,3.7775,2647.3,2647.0,0.7905]
[1727773319992,3.77725,2647.5,2647.0,0.7905]
[1727773320204,3.77725,2647.5,2647.0,3.77776]
[1727773320391,3.77735,2647.4,2647.1,0.7634]
[1727773320642,3.77715,2647.5,2647.1,5.45617316]
[1727773320988,3.77715,2647.5,2647.1,1.67847316]
[1727773321588,3.77711,2647.6,2647.1,5.45615316]
[1727773321790,3.77711,2647.6,2647.2,0.7835]
[1727773322101,3.77681,2647.8,2647.3,3.77736]
[1727773322297,3.77681,2647.8,2647.4,0.7835]
[1727773322606,7.55366,2647.8,2647.4,0.7835]
[1727773322812,7.64808498,2647.8,2647.4,0.7835]
[1727773323313,7.53361212,2647.8,2647.4,0.7835]
[1727773323618,3.75676212,2647.8,2647.4,1.33212703]
[1727773324224,3.75676212,2647.8,2647.5,0.8301]
[1727773324596,3.77653,2648.0,2647.5,4.60722]
[1727773325336,3.77653,2648.0,2647.5,8.38428]
[1727773325521,0.09441573,2648.1,2647.6,3.77692]
[1727773325522,3.87070573,2648.1,2647.6,3.77692]
[1727773325709,3.87070573,2648.1,2647.7,1.72964116]
[1727773326334,3.77644,2648.0,2647.7,1.72964116]
[1727773327733,7.55295,2648.0,2647.7,1.72964116]
[1727773327931,3.77644,2648.0,2647.7,1.72964116]
[1727773328253,1.60943161,2647.8,2647.7,1.72964116]
[1727773328467,1.60943161,2647.8,2647.7,0.8133]
[1727773331349,1.60943161,2647.8,2647.5,3.0]
[1727773331510,1.60943161,2647.8,2647.5,3.764]
[1727773331952,1.60943161,2647.8,2647.5,7.5411]
[1727773332109,1.60943161,2647.8,2647.6,1.1867017]
[1727773333609,0.09441718,2647.9,2647.6,4.9636917]
[1727773333806,5.48030174,2648.0,2647.6,1.1867017]
[1727773334006,5.48030174,2648.0,2647.6,4.9636717]
[1727773334422,3.87087013,2648.0,2647.6,4.9636717]
[1727773334673,0.8023,2648.1,2647.6,4.9636717]
[1727773334674,6.18802161,2648.1,2647.6,4.9636717]
[1727773334880,6.18802161,2648.1,2647.7,3.77684]
[1727773335109,9.96440161,2648.1,2647.7,3.77684]
[1727773335315,6.18802161,2648.1,2647.6,4.9636917]
[1727773335608,3.77615,2648.2,2647.8,4.57197]
[1727773336013,6.20962161,2648.3,2647.8,4.57197]
[1727773336505,3.77618,2648.2,2647.8,4.57197]
[1727773336871,3.77609,2648.3,2647.9,3.77657]
[1727773337193,3.77609,2648.3,2647.9,4.73639992]
[1727773337504,3.77586,2648.4,2647.9,4.73639992]
[1727773337712,1.60943161,2648.3,2647.9,4.73639992]
[1727773338332,5.38545161,2648.3,2647.9,0.95991992]
[1727773339106,0.09440717,2648.4,2647.9,0.95991992]
[1727773339107,0.09440717,2648.4,2648.0,4.59743]
[1727773339309,3.77586,2648.5,2648.2,0.8211]
[1727773339695,3.87025797,2648.5,2648.2,0.8211]
[1727773340835,3.7758,2648.5,2648.2,0.8211]
[1727773341704,3.86999799,2648.6,2648.2,4.59724]
[1727773341881,3.86999799,2648.6,2648.3,0.5152975]
[1727773343108,9.16050161,2648.7,2648.3,0.5152975]
[1727773343452,3.77552,2648.7,2648.3,4.2912975]
[1727773343743,3.77556,2648.7,2648.3,0.5152975]
[1727773345086,3.77559,2648.6,2648.3,0.5152975]
[1727773346623,3.77546,2648.7,2648.4,0.51125375]
[1727773347199,2.43873161,2648.9,2648.4,0.51125375]
[1727773347200,0.8293,2648.9,2648.4,0.51125375]
[1727773347404,3.77537,2648.8,2648.5,0.7591]
[1727773347715,3.77511,2649.0,2648.5,0.7591]
[1727773347928,3.77516,2648.9,2648.5,4.53479]
[1727773348124,3.77511,2649.0,2648.7,0.8176]
[1727773348342,3.7751,2649.0,2648.7,0.8176]
[1727773348528,3.77515,2648.9,2648.7,0.8176]
[1727773349010,1.60943161,2649.2,2648.7,0.8176]
[1727773349211,3.77501,2649.0,2648.7,0.8176]
[1727773349409,3.77501,2649.0,2648.7,1.57691]
[1727773350703,7.5501,2649.0,2648.7,1.57691]
[1727773351040,3.77522,2648.9,2648.7,1.57691]
[1727773353922,4.57268,2649.1,2648.7,1.57691]
[1727773354215,3.77516,2648.9,2648.7,1.57691]
[1727773356398,3.77516,2648.9,2648.7,0.8176]
[1727773356602,2.37543161,2648.8,2648.5,18.45]
[1727773356829,3.77557,2648.6,2648.5,18.45]
[1727773357185,3.77532,2648.8,2648.2,5.38550161]
[1727773357447,7.55071,2648.8,2648.4,3.77586]
[1727773357607,3.77532,2648.8,2648.4,3.77586]
[1727773357807,0.09438602,2648.9,2648.4,3.77586]
[1727773358338,3.77531,2648.8,2648.3,3.14045016]
[1727773358549,3.77531,2648.8,2648.4,4.62844218]
[1727773358855,3.77531,2648.8,2648.4,0.85259218]
[1727773359042,3.77558,2648.6,2648.3,0.7569]
[1727773359841,3.77578,2648.5,2648.3,0.7569]
[1727773360436,3.77586,2648.4,2648.3,0.7569]
[1727773360641,3.8699432,2648.7,2648.3,0.7569]
[1727773360642,3.77574,2648.5,2648.3,0.7569]
[1727773361225,3.77574,2648.5,2648.2,3.0]
[1727773361419,3.77574,2648.5,2648.2,5.600102]
[1727773363979,3.77612,2648.3,2648.1,18.45]
[1727773364124,5.38555161,2648.3,2647.9,0.777]
[1727773364322,5.38551161,2648.3,2647.9,3.77657]
[1727773364545,3.77608,2648.3,2647.9,3.77657]
[1727773365468,3.77608,2648.3,2647.9,4.609606]
[1727773365646,3.77608,2648.3,2648.0,0.777]
[1727773367551,3.77618,2648.2,2648.0,0.777]
[1727773370448,3.77609,2648.3,2648.0,0.777]
[1727773372561,3.77609,2648.3,2648.0,1.23992349]
[1727773373148,3.77615,2648.2,2648.0,1.23992349]
[1727773373994,3.77598,2648.4,2648.0,1.23992349]
[1727773374361,3.77582,2648.5,2648.1,3.77626]
[1727773374749,3.77582,2648.5,2648.0,1.23992349]
[1727773374750,7.55163,2648.5,2648.0,23.46635349]
[1727773375086,3.77581,2648.5,2648.1,2.72428835]
[1727773375555,7.55163,2648.5,2648.1,2.72428835]
[1727773376369,3.77581,2648.5,2648.1,2.72428835]
[1727773376576,3.77581,2648.5,2648.1,6.50056835]
[1727773377099,4.54705,2648.7,2648.3,4.57634]
[1727773377100,3.7755,2648.7,2648.3,4.57634]
[1727773377254,3.7755,2648.7,2648.4,0.457634]
[1727773378151,4.57074,2648.9,2648.4,0.457634]
[1727773378375,3.77536,2648.8,2648.4,0.53314417]
[1727773378585,3.77536,2648.8,2648.4,0.457634]
[1727773378777,3.7755,2648.7,2648.4,0.457634]
[1727773378980,3.7755,2648.7,2648.5,0.5033974]
[1727773379851,3.77536,2648.8,2648.5,0.5033974]
[1727773380056,3.77543,2648.7,2648.5,0.5033974]
[1727773380292,3.77536,2648.8,2648.5,0.5033974]
[1727773380967,7.55077,2648.8,2648.5,0.5033974]
[1727773381165,3.77536,2648.8,2648.6,0.7684]
[1727773381882,3.77543,2648.7,2648.6,0.7684]
[1727773383300,3.77538,2648.8,2648.6,0.7684]
[1727773383713,1.60943161,2649.0,2648.6,0.7684]
[1727773384008,3.77515,2648.9,2648.6,0.7684]
[1727773384210,3.7753,2648.8,2648.6,0.7684]
[1727773384376,3.7753,2648.8,2648.6,1.31892614]
[1727773384738,3.77524,2648.9,2648.6,1.31892614]
[1727773385075,3.77504,2649.0,2648.6,1.31892614]
[1727773385266,3.77519,2648.9,2648.6,1.31892614]
[1727773386119,3.77504,2649.0,2648.6,1.31892614]
[1727773386287,3.77504,2649.0,2648.7,0.93736835]
[1727773386809,3.77517,2648.9,2648.7,0.93736835]
[1727773387018,3.77504,2649.0,2648.7,0.93736835]
[1727773388517,0.7523,2648.9,2648.5,3.77561]
[1727773388679,0.7523,2648.9,2647.5,3.77708]
[1727773388680,3.77659,2647.9,2646.7,0.06575389]
[1727773389011,3.77659,2647.9,2646.2,0.8051]
[1727773389012,3.77767,2647.2,2646.3,1.2532409]
[1727773389316,3.77737,2647.4,2646.8,1.60943161]
[1727773389628,3.77772,2647.1,2646.5,0.8051]
[1727773390117,3.77797,2647.0,2646.5,0.8051]
[1727773390317,3.77772,2647.1,2646.5,0.8051]
[1727773391057,4.96453636,2647.4,2646.7,3.48026947]
[1727773391215,3.77731,2647.4,2646.8,0.78842494]
[1727773391646,3.77731,2647.4,2646.6,0.55]
[1727773391845,3.77744,2647.3,2646.6,0.55]
[1727773392648,3.77768,2647.2,2646.6,0.55]
[1727773393166,3.77811,2646.9,2646.5,0.8051]
[1727773393340,3.77794,2647.0,2646.5,0.8051]
[1727773396840,3.77794,2647.0,2646.6,0.49790726]
[1727773398296,3.77801,2646.9,2646.5,0.8051]
[1727773398453,3.77801,2646.9,2646.5,19.2551]
[1727773399811,7.55593,2647.0,2646.5,19.2551]
[1727773400251,3.77794,2647.0,2646.5,19.2551]
[1727773401261,3.77794,2647.0,2646.5,23.03366]
[1727773401418,3.77794,2647.0,2646.6,2.72077126]
[1727773404013,3.77802,2646.9,2646.6,2.72077126]
[1727773407726,0.09445062,2647.0,2646.5,18.45]
[1727773407727,3.77843,2646.6,2646.5,18.45]
[1727773408059,3.77843,2646.6,2646.2,0.7919]
[1727773408808,3.77821,2646.8,2646.2,0.7919]
[1727773408962,3.77829,2646.7,2646.2,4.57089]
[1727773409119,3.77829,2646.7,2646.2,7.991897]
[1727773412046,3.87275182,2646.7,2646.2,7.991897]
[1727773412755,0.09446182,2646.7,2646.2,4.212907]
[1727773412963,3.77844,2646.6,2646.2,4.212907]
[1727773413274,0.09446182,2646.7,2646.2,4.212907]
[1727773413275,0.09446182,2646.7,2646.2,26.441897]
[1727773413450,3.87275182,2646.7,2646.2,26.441897]
[1727773415628,3.77847,2646.6,2646.2,22.662907]
[1727773416934,3.77829,2646.7,2646.2,26.441837]
[1727773417163,3.77829,2646.7,2646.3,3.77885]
[1727773418233,3.77844,2646.6,2646.2,26.441887]
[1727773418733,3.77844,2646.6,2646.2,22.662907]
[1727773418933,7.25948673,2647.1,2646.2,22.662907]
[1727773418934,3.77826,2646.8,2646.2,22.662907]
[1727773419135,3.7783,2646.7,2646.2,26.441837]
[1727773419351,3.7783,2646.7,2646.2,7.991837]
[1727773419563,3.77826,2646.8,2646.2,7.991837]
[1727773419768,7.55699,2646.6,2646.2,0.7919]
[1727773419948,3.77845,2646.6,2646.2,0.7919]
[1727773421633,3.77914,2646.1,2645.9,0.8024]
[1727773421832,3.77923,2646.1,2645.9,0.8024]
[1727773423292,3.77928,2646.0,2645.9,0.8024]
[1727773423479,3.87371424,2646.1,2645.9,0.8024]
[1727773423682,3.77923,2646.1,2645.9,0.8024]
[1727773423980,3.77928,2646.0,2645.9,0.8024]
[1727773424338,7.5585,2646.1,2645.9,0.8024]
[1727773424559,3.77923,2646.1,2645.9,0.8024]
[1727773424963,3.87371424,2646.1,2645.9,0.8024]
[1727773425737,7.65294424,2646.1,2645.9,0.8024]
[1727773426164,3.77928,2646.0,2645.9,0.8024]
[1727773427080,3.77901,2646.2,2645.9,0.8024]
[1727773427236,3.77863,2646.5,2645.9,0.8024]
[1727773427237,3.77881,2646.4,2645.9,0.8024]
[1727773427437,3.77915,2646.1,2645.9,0.8024]
[1727773427948,7.55812,2646.2,2645.9,0.8024]
[1727773428272,3.77901,2646.2,2645.9,0.8024]
[1727773430768,3.77923,2646.1,2645.6,4.60015]
[1727773431201,3.77923,2646.1,2645.6,23.05015]
[1727773432172,3.779,2646.2,2645.7,3.77964]
[1727773432391,3.779,2646.2,2645.8,3.77955]
[1727773432569,3.77882,2646.4,2645.8,3.77955]
[1727773432768,3.77882,2646.4,2645.7,3.77964]
[1727773432769,3.77873,2646.4,2645.9,4.55845]
[1727773433302,3.77873,2646.4,2645.9,4.55843]
[1727773433665,3.77887,2646.3,2645.9,4.55843]
[1727773435605,3.77887,2646.3,2645.9,6.16575921]
[1727773435766,3.77866,2646.5,2646.1,1.60732921]
[1727773436227,3.77872,2646.4,2646.1,1.60732921]
[1727773436716,3.77854,2646.6,2646.3,1.60732921]
[1727773437015,3.77847,2646.6,2646.3,2.22859013]
[1727773437512,3.77816,2646.8,2646.3,2.22859013]
[1727773437715,3.77844,2646.6,2646.3,2.22859013]
[1727773438050,3.7783,2646.7,2646.3,6.00744013]
[1727773438325,3.77809,2646.9,2646.5,0.755]
[1727773438615,3.77809,2646.9,2646.5,2.36232921]
[1727773438814,3.77795,2647.0,2646.5,2.36232921]
[1727773439129,3.77795,2647.0,2646.5,20.81232921]
[1727773439415,3.77795,2647.0,2646.6,1.32080708]
[1727773439630,7.5559,2647.0,2646.6,1.32080708]
[1727773439951,3.77814,2646.9,2646.6,1.32080708]
[1727773440098,3.77814,2646.9,2646.5,19.205]
[1727773440505,3.77795,2647.0,2646.5,24.59081921]
[1727773440894,3.77795,2647.0,2646.5,20.81232921]
[1727773441922,3.77774,2647.1,2646.6,4.32841]
[1727773442618,3.77774,2647.1,2646.7,0.8207]
[1727773442984,3.77764,2647.2,2646.8,0.07555556]
[1727773443723,3.77764,2647.2,2646.7,27.17695313]
[1727773445595,7.55532,2647.2,2646.7,27.17695313]
[1727773445942,3.77764,2647.2,2646.7,27.17695313]
[1727773446102,3.77764,2647.2,2646.7,23.39867313]
[1727773446438,7.55533,2647.2,2646.8,2.77270831]
[1727773446636,3.77764,2647.2,2646.8,2.84826144]
[1727773446944,3.77743,2647.3,2646.9,0.7638]
[1727773447100,3.77743,2647.3,2646.9,2.37112921]
[1727773447484,1.18040205,2647.5,2646.9,5.49368028]
[1727773447645,5.3509794,2647.6,2647.1,1.60732921]
[1727773447646,3.77735,2647.4,2647.1,1.60732921]
[1727773447933,7.55472,2647.4,2647.1,1.60732921]
[1727773448139,3.77735,2647.4,2647.1,1.60732921]
[1727773448841,3.77711,2647.6,2647.1,1.60732921]
[1727773448842,3.77711,2647.6,2647.2,0.7873]
[1727773449043,3.77715,2647.5,2647.2,0.7873]
[1727773449345,0.09443178,2647.4,2647.0,19.2373]
[1727773449500,3.77764,2647.2,2647.0,19.2373]
[1727773451011,3.7774,2647.4,2647.0,19.2373]
[1727773451228,3.77745,2647.3,2647.0,19.2373]
[1727773451846,3.77761,2647.2,2647.0,19.2373]
[1727773452116,3.77771,2647.1,2647.0,18.45]
[1727773452857,3.87195881,2647.3,2647.0,18.45]
[1727773453057,3.77771,2647.1,2647.0,18.45]
[1727773454655,3.77759,2647.2,2647.0,18.45]
[1727773454861,3.77759,2647.2,2646.8,19.2302]
[1727773455948,1.18040205,2647.6,2646.9,3.778]
[1727773456152,5.70886205,2647.7,2647.0,4.61038]
[1727773456353,3.77716,2647.5,2647.0,4.61038]
[1727773456773,3.777,2647.6,2647.1,7.6308257]
[1727773456941,3.777,2647.6,2647.1,3.77764]
[1727773457135,3.777,2647.6,2647.1,3.77763]
[1727773457340,1.93190205,2647.9,2647.3,4.23811737]
[1727773457341,3.77667,2647.9,2647.3,4.23811737]
[1727773457546,3.87109182,2647.9,2647.3,26.46542737]
[1727773457751,3.77686,2647.7,2647.3,22.98561]
[1727773458531,7.5538,2647.7,2647.3,19.2083]
[1727773458734,3.77686,2647.7,2647.3,19.2083]
[1727773459182,3.77729,2647.4,2647.3,18.45]
[1727773459678,3.77715,2647.5,2647.3,18.45]
[1727773460879,3.77715,2647.5,2647.1,0.8311]
[1727773461034,3.77702,2647.6,2647.1,4.60879]
[1727773461244,3.77697,2647.7,2647.2,0.55]
[1727773461477,3.77697,2647.7,2647.2,4.3275]
[1727773461657,3.77688,2647.7,2647.3,0.07554151]
[1727773462277,3.77688,2647.7,2647.2,8.10498]
[1727773462278,3.77688,2647.7,2647.2,4.32748]
[1727773462440,3.77688,2647.7,2647.2,11.56884981]
[1727773462773,3.77688,2647.7,2647.2,7.79135981]
[1727773462980,3.77688,2647.7,2647.2,11.56880981]
[1727773463272,3.77675,2647.8,2647.3,3.77734]
[1727773463480,3.77686,2647.7,2647.4,0.8194]
[1727773464575,0.09442099,2647.9,2647.4,0.8194]
[1727773464576,3.77712,2647.6,2647.4,0.8194]
[1727773464884,3.77712,2647.6,2647.2,0.8194]
[1727773464885,3.77705,2647.6,2647.2,0.8194]
[1727773465039,3.87148088,2647.6,2647.2,0.8194]
[1727773465238,3.77705,2647.6,2647.2,0.8194]
[1727773465450,0.09443079,2647.6,2647.2,0.8194]
[1727773465655,3.77714,2647.5,2647.2,0.8194]
[1727773466866,3.77735,2647.4,2647.2,0.8194]
[1727773467565,3.77714,2647.5,2647.2,0.8194]
[1727773467781,3.77708,2647.6,2647.2,4.59697]
[1727773468102,3.77695,2647.7,2647.3,3.47981737]
[1727773468266,3.77695,2647.7,2647.3,3.77742]
[1727773469609,3.77695,2647.7,2647.3,0.55]
[1727773470953,7.55394,2647.7,2647.3,0.55]
[1727773471094,3.77695,2647.7,2647.3,0.55]
[1727773472580,3.77695,2647.7,2647.3,19.0]
[1727773472774,3.77695,2647.7,2647.3,22.77742]
[1727773473478,3.77695,2647.7,2647.3,19.0]
[1727773473909,3.77703,2647.6,2647.3,19.0]
[1727773474071,3.77688,2647.7,2647.3,22.77743]
[1727773475179,3.7767,2647.9,2647.3,19.0]
[1727773475180,3.777,2647.6,2647.3,19.0]
[1727773475694,0.8184,2647.7,2647.3,18.45]
[1727773475895,3.77722,2647.5,2647.3,18.45]
[1727773476079,3.77729,2647.4,2647.3,18.45]
[1727773477569,3.77722,2647.5,2647.3,18.45]
[1727773478573,3.77722,2647.5,2647.1,4.55825]
[1727773479314,0.0944311,2647.6,2647.1,0.7806]
[1727773479518,3.77721,2647.5,2647.1,4.55825]
[1727773480708,3.77721,2647.5,2647.1,0.7806]
[1727773481021,3.77721,2647.5,2647.1,4.55825]
[1727773481582,0.0944311,2647.6,2647.2,3.77757]
[1727773481583,3.77701,2647.6,2647.2,3.77757]
[1727773481784,4.59538,2647.7,2647.2,7.55506]
[1727773481785,3.77698,2647.7,2647.2,7.55506]
[1727773482227,3.77698,2647.7,2647.3,4.62944146]
[1727773482387,3.77694,2647.7,2647.3,4.5539]
[1727773482885,7.55393,2647.7,2647.3,0.7765]
[1727773483226,3.77725,2647.5,2647.3,0.7765]
[1727773484545,3.77713,2647.6,2647.3,0.7765]
[1727773484639,3.7771,2647.6,2647.3,0.7765]
[1727773484923,3.77723,2647.5,2647.3,0.7765]
[1727773486020,8.73458205,2647.6,2647.3,0.7765]
[1727773486324,3.77721,2647.5,2647.3,0.7765]
[1727773487874,3.77715,2647.5,2647.3,0.7765]
[1727773488014,1.27482996,2647.6,2647.3,0.7765]
[1727773488243,5.88287996,2647.6,2647.2,18.45]
[1727773488417,3.77722,2647.5,2647.2,18.45]
[1727773488601,3.7773,2647.4,2647.2,18.45]
[1727773490822,5.78851205,2647.6,2647.2,18.45]
[1727773491208,5.88294332,2647.6,2647.2,18.45]
[1727773491840,3.77582404,2647.5,2647.2,18.45]
[1727773492044,4.95742205,2647.6,2647.2,20.05574348]